Cogmind - Beta 10.2 @@@ ROGUE MODE // 2021.01.12 @ 03:52:27 Player: cptwinky Result: Destroyed by as-61228 with Assembled Maul Performance ------------- Evolutions (0) 0 Regions Visited (2) 400 Robots Destroyed (29) 145 Value Destroyed (626) 626 Prototype IDs (0) 0 Alien Tech Used (0) 0 Bonus (0) 0 TOTAL SCORE: 1171 Bonus ------- None Cogmind --------- Core Integrity 0/250 Matter 263/300 Energy 96/100 System Corruption 3% Temperature Cool (0) Movement Core (600) Ox11 Location -10/Mines Parts ------- > --- POWER (1) -------- (None) > --- PROPULSION (2) --- (None) > --- UTILITY (2) ------ Large Storage Unit Large Storage Unit > --- WEAPON (2) ------- Improved Light Cannon > --- INVENTORY (16) --- Wheel Medium Storage Unit High-capacity Matter Pod (200) Improved Signal Interpreter Light Armor Plating Light Armor Plating Improved Light Cannon Datajack Hammer Peak State ------------ > --- POWER ------------ Ion Engine > --- PROPULSION ------- Light Treads Light Treads > --- UTILITY ---------- Large Storage Unit Large Storage Unit > --- WEAPON ----------- EM Shotgun EM Shotgun > --- INVENTORY -------- Ion Engine Light Treads Light Treads Wheel Medium Storage Unit High-capacity Matter Pod Improved Signal Interpreter Light Armor Plating Light Armor Plating EM Shotgun Assault Rifle Assault Rifle Improved Light Cannon Improved Light Cannon Datajack Hammer [Rating: 11] Favorites ----------- Power Ion Engine Engine Ion Engine Propulsion Light Treads Treads Light Treads Wheel Wheel Utility Small Storage Unit Storage Small Storage Unit Weapon EM Shotgun Energy Gun EM Shotgun Ballistic Gun Light Assault Rifle Ballistic Cannon Improved Light Cannon Build | -11 -10 -10 ------- Run | Scr Mat Min Slots Evolved . | . . . Power . | . . . Propulsion . | . . . Utility . | . . . Weapon . | . . . Parts Attached 26 | 6 12 8 Power 4 | 1 2 1 Engine 4 | 1 2 1 Core . | . . . Reactor . | . . . Propulsion 7 | 2 2 3 Treads 6 | 2 2 2 Leg . | . . . Wheel 1 | . . 1 Hover . | . . . Flight . | . . . Utility 4 | 1 3 . Device . | . . . Storage 4 | 1 3 . Processor . | . . . Hackware . | . . . Protection . | . . . Artifact . | . . . Weapon 11 | 2 5 4 Energy Gun 6 | 2 3 1 Energy Cannon . | . . . Ballistic Gun 4 | . 2 2 Ballistic Cannon 1 | . . 1 Launcher . | . . . Special Weapon . | . . . Impact Weapon . | . . . Slashing Weapon . | . . . Piercing Weapon . | . . . Special Melee Weapon . | . . . Unidentified Prototypes . | . . . Parts Lost 15 | . 4 11 Power 3 | . 1 2 Propulsion 4 | . . 4 Utility . | . . . Weapon 8 | . 3 5 Highest Loss Streak 7 | . 1 7 Average Slot Usage (%) 95 | . 96 84 Engine 13 | . 14 5 Treads 27 | . 28 19 Storage 25 | . 25 28 Energy Gun 24 | . 25 9 Ballistic Gun 2 | . 1 14 Naked Turns . | . . . Heaviest Build 43 | 11 43 43 Greatest Support 40 | 40 40 40 Greatest Overweight (x) 3 | . 1 3 Average Overweight (x) . | . . 2 Largest Inventory Capacity 16 | 6 16 16 Average Capacity 10 | 5 10 16 Most Carried 16 | 5 16 16 Average Carried 9 | 2 9 11 Final Capacity 16 | 6 16 16 Final Carried 16 | 5 16 9 Class Distribution -------------------- 100% | Mutant Dominant Class ---------------- Mutant | -10/Materials Mutant | -10/Mines Resources | -11 -10 -10 ----------- Run | Scr Mat Min Matter Collected 527 | 255 195 77 Remotely . | . . . Salvage Created 1174 | 56 1029 89 Parts 68 | 2 64 2 Haulers Intercepted 2 | . 2 . Recyclers Shooed 1 | . 1 . Parts Field Recycled . | . . . Retrieved Matter . | . . . Parts Self-Destructed . | . . . Prevented . | . . . Kills | -11 -10 -10 ------- Run | Scr Mat Min Combat Hostiles Destroyed 23 | . 18 5 Guns 22 | . 17 5 Classes Destroyed 8 | 1 6 1 Worker 1 | . 1 . Hauler 2 | . 2 . Recycler 2 | 1 1 . Operator 3 | . 3 . Watcher 1 | . 1 . Swarmer 7 | . 5 2 Grunt 13 | . 13 . Assembled 3 | . . 3 Best Kill Streak 3 | 1 3 2 Combat Bots Only 3 | . 3 2 Max Kills in Single Turn 1 | 1 1 1 Gunslinging . | . . . Exploded . | . . . Melee . | . . . Uniques/NPCs Destroyed . | . . . Combat | -11 -10 -10 -------- Run | Scr Mat Min Damage Taken 1808 | . 692 1116 Core 266 | . 79 187 Absorbed by Shields . | . . . Core Remaining (%) 100 | 100 . . Volleys Fired 98 | 1 74 23 Largest 2 | 2 2 2 Hottest 90 | 80 90 90 Shots Fired 154 | 2 110 42 Gun 152 | 2 110 40 Cannon 2 | . . 2 Launcher . | . . . Special . | . . . Kinetic 39 | . 9 30 Thermal . | . . . Explosive . | . . . Electromagnetic 115 | 2 101 12 Robot Hit Streak 10 | 1 10 8 Robot Miss Streak 5 | . 5 5 Penetration Max . | . . . Secondary Targets 3 | . 1 2 Max Gunslinging Chain 1 | . 1 1 Shots Hit Robots 108 | 1 81 26 Core Hits 62 | 1 46 15 Critical Hits . | . . . Critical Kills . | . . . Critical Parts Destroyed . | . . . Melee Attacks . | . . . Impact . | . . . Slashing . | . . . Piercing . | . . . Sneak Attacks . | . . . Combat Hostiles . | . . . Follow-up Attacks . | . . . Damage Inflicted 1569 | 15 1239 315 Guns 1479 | 15 1181 283 Cannons 24 | . . 24 Explosions 44 | . 44 . Melee . | . . . Ramming 22 | . 14 8 Kinetic 262 | . 77 185 Thermal 44 | . 44 . Explosive . | . . . Electromagnetic 1241 | 15 1104 122 Impact . | . . . Slashing . | . . . Piercing . | . . . Highest Corruption 3 | . 1 3 Average Corruption 1 | . 1 1 Corruption Purged . | . . . Effects 1 | . 1 . Message Errors 1 | . 1 . Overload Shots . | . . . Overflow Damage . | . . . Projectiles . | . . . Explosions . | . . . Melee . | . . . Knockbacks 1 | . . 1 Impact . | . . . Kinetic 1 | . . 1 Secondary . | . . . Self-Inflicted Damage . | . . . Shots . | . . . Rammed 7 | . 2 5 Targets Rammed 7 | . 2 5 Kicked . | . . . Crushed . | . . . Highest Temperature 208 | 18 208 96 Average Temperature 53 | 12 56 43 Received Heat Transfer 536 | . 276 260 Effects 1 | . 1 . Interference 1 | . 1 . Siege Activations . | . . . Robots Corrupted 2 | . 2 . Combat Hostiles 1 | . 1 . Parts Fried 3 | . 3 . Impact Corruptions . | . . . Robots Melted . | . . . Combat Hostiles . | . . . Parts Melted . | . . . Heat Transferred 50 | . 50 . Parts Sabotaged . | . . . Parts Stolen . | . . . Parts Stripped . | . . . Power Chain Reactions 1 | . 1 . Missiles Intercepted . | . . . Alert | -11 -10 -10 ------- Run | Scr Mat Min Peak Influence 309 | 5 309 166 Initial 101 | . 3 101 Average 136 | . 146 111 Maximum Alert Level 1 | . 1 . Low Security (%) 66 | 100 62 100 Level 1 33 | . 37 . Level 2 . | . . . Level 3 . | . . . Level 4 . | . . . Level 5 . | . . . High Security . | . . . Max Security . | . . . Squads Dispatched 7 | . 7 . Investigation 4 | . 4 . Extermination . | . . . Reinforcement 3 | . 3 . Assault . | . . . Garrison . | . . . Intercept . | . . . Construction Impeded . | . . . Haulers Reinforced . | . . . Stealth | -11 -10 -10 --------- Run | Scr Mat Min Distress Signals 2 | . 2 . Communications Jammed . | . . . Distress Signals . | . . . Times Spotted 65 | . 51 14 Peak Tracking Total 6 | . 3 6 Tactical Retreats 8 | . 7 1 Traps | -11 -10 -10 ------- Run | Scr Mat Min Traps Triggered 2 | . 2 . Indirectly . | . . . Trap Hack Attempts . | . . . Triggered . | . . . Disarmed . | . . . Reprogrammed 8 | . 8 . Reused 4 | . 4 . Traps Extracted . | . . . Installed . | . . . Triggered 4 | . 4 . Machines | -11 -10 -10 ---------- Run | Scr Mat Min Machines Disabled 2 | . 2 . Max in Single Turn 1 | . 1 . Machines Sabotaged . | . . . Garrisons Compromised . | . . . Overloaded Fab Kills . | . . . Fab Network Shutdowns . | . . . Hacking | -11 -10 -10 --------- Run | Scr Mat Min Machines Accessed 7 | . 6 1 Terminals 5 | . 4 1 Fabricators . | . . . Repair Stations . | . . . Recycling Units 2 | . 2 . Scanalyzers . | . . . Garrison Access . | . . . Total Hacks 24 | . 22 2 Successful 12 | . 11 1 Failed 11 | . 10 1 Catastrophic 1 | . 1 . Database Lockouts 1 | . 1 . Manual 13 | . 11 2 Terminals 18 | . 16 2 Fabricators . | . . . Repair Stations . | . . . Recycling Units 6 | . 6 . Scanalyzers . | . . . Garrison Access . | . . . Terminal Hacks 6 | . 6 . Robot Analysis 3 | . 3 . Emergency Access Points 1 | . 1 . Reprogram Traps 2 | . 2 . Fabricator Hacks . | . . . Repair Station Hacks . | . . . Recycling Unit Hacks 3 | . 3 . Process 1 | . 1 . Retrieve Matter 1 | . 1 . Retrieve Components 1 | . 1 . Scanalyzer . | . . . Garrison Access Hacks . | . . . Unauthorized Hacks 3 | . 2 1 Terminals 1 | . . 1 Track 1 | . . 1 Fabricators . | . . . Repair Stations . | . . . Recycling Units 2 | . 2 . Tunnel 2 | . 2 . Scanalyzers . | . . . Garrison Access . | . . . Data Cores Recovered . | . . . Used . | . . . Hacking Detections 5 | . 4 1 Full Trace Events 3 | . 3 . Feedback Events 1 | . 1 . Corruption 1 | . 1 . Feedback Blocked . | . . . Robot Schematics Acquired . | . . . Robots Built . | . . . Matter . | . . . Time . | . . . Total Robot Build Rating . | . . . Part Schematics Acquired . | . . . Parts Built . | . . . Matter . | . . . Time . | . . . Total Part Build Rating . | . . . Parts Repaired . | . . . Time . | . . . Parts Recycled . | . . . Recycled Matter 290 | . 290 . Retrieved Matter 340 | . 340 . Retrieved Components 5 | . 5 . Parts Scanalyzed . | . . . Part Schematics Acquired . | . . . Parts Damaged . | . . . Bothacking | -11 -10 -10 ------------ Run | Scr Mat Min Used RIF Installer . | . . . Robots Hacked . | . . . Non-combat . | . . . Combat . | . . . Robot Hacks Applied . | . . . Relay Couplers Released . | . . . Robots Rewired . | . . . Allies Hacked . | . . . Hacks Repelled . | . . . Allies | -11 -10 -10 -------- Run | Scr Mat Min Total Allies . | . . . Largest Group . | . . . Highest-Rated Group . | . . . Highest-Rated Ally . | . . . Total Orders . | . . . Ally Attacks . | . . . Total Damage . | . . . Kills . | . . . Allies Corrupted . | . . . Allies Melted . | . . . Intel | -11 -10 -10 ------- Run | Scr Mat Min Robot Analysis Total 3 | . 3 . Derelict Logs Recovered . | . . . Drone Launches . | . . . Drone Recoveries . | . . . Exploration | -11 -10 -10 ------------- Run | Scr Mat Min Turns Passed 2045 | 110 1798 137 Spaces Moved 869 | 59 773 37 Core 2 | 2 . . Treads 843 | 57 773 13 Legs . | . . . Wheels 24 | . . 24 Hover . | . . . Flight . | . . . Fastest Speed 50 | 50 160 110 Average Speed 163 | 156 165 134 Slowest Speed 180 | 160 180 180 Overloaded Moves . | . . . Propulsion Burnouts . | . . . Robots Hopped . | . . . Cave-ins Triggered . | . . . Exploration Rate (%) 35 | 4 90 12 Regions Visited 2 Branch Regions 1 Pre-discovered Areas 2 | . 2 . Known Exits Taken . | . . . Unknown Exits Taken 2 | 1 1 . Scrap Searched . | . . . Spaces Dug . | . . . Terrain Destroyed 2 | . 2 . Melee . | . . . Projectile . | . . . AOE 2 | . 2 . Terrain Rammed . | . . . Walls Destroyed . | . . . Machines Disabled . | . . . Actions | -11 -10 -10 --------- Run | Scr Mat Min Total 1337 | 72 1186 79 Wait 308 | 2 300 6 Move 867 | 58 772 37 Hop . | . . . Pick Up 23 | 5 18 . Fast Attach 8 | 6 2 . Attach 10 | . 3 7 Detach . | . . . Swap 8 | . 7 1 Drop 8 | . 8 . Fire 98 | 1 74 23 Melee . | . . . Ram . | . . . Kick . | . . . Crush 7 | . 2 5 Escape Stasis . | . . . Rewire . | . . . Trap . | . . . Miscellaneous . | . . . Route ------- -11/Scrapyard -10/Materials (discovered 3 exits: [*Mat x2] / *Min) -10/Mines History --------- Turn | Location | Event 18 | -11/Scrapyard | Discovered new exit (range 16) 111 | -11/Scrapyard | Entered Materials 326 | -10/Materials | Build established: Mutant 608 | -10/Materials | Discovered new exit (range 8) 735 | -10/Materials | Discovered new exit (range 11) 1017 | -10/Materials | Discovered new exit (range 12) 1094 | -10/Materials | Central database locked down 1909 | -10/Materials | Entered Mines 1910 | -10/Mines | Assembled infested the area 1915 | -10/Mines | Assisted by a Guerilla fighting off Assembled 1924 | -10/Mines | Met a Derelict bent on vengeance 1987 | -10/Mines | Lost 7 parts (2p2n3w) 2019 | -10/Mines | Core integrity fell below 50% 2040 | -10/Mines | Core integrity fell below 20% 2046 | -10/Mines | Destroyed by as-61228 with Assembled Maul Last Messages --------------- 01982_ Acquired 17 matter. 01983_ Acquired 20 matter. 01985_ Acquired 7 matter. 01987_ Acquired 16 matter. 02006_ as-31512 suffers critical hit. 02006_ as-31512 destroyed. 02010_ Acquired 2 matter. 02012_ as-32394 destroyed. 02014_ ZZ-OZZ(h) destroyed. 02015_ Acquired 15 matter. 02023_ Assault Rifle destroyed. 02029_ Critical hit. 02029_ Assault Rifle destroyed. 02034_ Slammed into as-31384. 02038_ Lgt. Treads destroyed. 02038_ System corrupted by crushing effect (+2). 02038_ Slammed into as-31384. 02041_ Lgt. Treads destroyed. 02042_ Knocked back. 02045_ as-31384 knocked back. Map ----- +----------------------------------------------------+ | ???????# #????????????????????????? | | ?####### #####????????????????????? | | ?#" *%%=% # #????????????????????? | | ?# #"### #????????????????? | | ?## % #????????????????? | | ??# " #####????????????????? | | ??# " #????????????????????? | | ??# " #????????????????????? | | ??########"" #????????????????????? | | ?????????##" #????????????????????? | | ??????????## #????????????????????? | | ??????????## #????????????????????? | | ??????????#" #????????????????????? | | ??????????## #????????????????????? | | ???????????# #????????????????????? | | ???????????# #????????????????????? | | ????????#### #????????????????????? | | ????????# #????????????????????? | | ????????# #;##????????????????????? | | ????????# ; #?????????????????????? | | ???????## ;##### #????????????????? | | ??????## % % #????????????????? | | ??????# #????????????????? | | ??????##aa #######????????????????? | | ???????# a!#?????????????????????? | | ???????" @%#?????????????????????? | | ???????" ??????????????????? | | ???????#X ??????????????? | | ???????# #### a *%#??????????? | | ???????##; #????? == ?????????? | | ????????# #??????? ??????????? | | ???????? ????????? ??????????? | | ???????? ?????????????????????? | | ???????? #?????????????????????? | | ???????# ##?????????????????????? | | ???????# #???????????????????????? | | ???????# ????????????????????????? | | ???????# ????????????????????????? | | ???????# ????????????????????????? | | ???????# ????????????????????????? | | ???????? ????????????????????????? | | ??????????????????????????????????? | | ??????????????????????????????????? | | ??????????????????????????????????? | | ??????????????????????????????????? | | ??????????????????????????????????? | | ??????????????????????????????????? | | ??????????????????????????????????? | | ??????????????????????????????????? | | | +----------------------------------------------------+ Best States ------------- Heat Dissipation 25 Energy Generation 10 Energy Capacity 250 Matter Stores 300 Matter Capacity 300 Sight Range 16 Terrain Scan Density 10 Evasion (%) 40 Recoil Reduction 2 Item Schematics ----------------- None Robot Schematics ------------------ None Fabricated ------------ Nothing Alien Tech Used ----------------- None Achievements -------------- None Challenges ------------ None Game ------ Seed FireFortressReactor Manual? 0 Play Time 00:13:12 Cumulative 741.3 hours Start 2021.01.12 @ 03:40:23 End 2021.01.12 @ 03:52:27 Sessions 1 Manual Loads 0 Difficulty Rogue Special Mode None Game No. 529 Rogue 525 Adventurer 4 Explorer 0 Win Type - Total 82 Types 63/8/4/3/2/0/0/1/1 Lore% 94 Gallery% 97 Achievement% 96 Wizard Run 0 Options --------- ASCII 0 Keyboard 1 Movement Vi Keybinds 0 Fullscreen 0 Font 16/Terminus Map View 76x50 Tactical HUD 1 Map Filters NONE Filters NONE Steam 1 RUN: d021578b-3222-4730-b474-8402525ce1da